fUSD/lending_fUSD_20250123
["ID","MTS","AMOUNT","RATE_DAILY","PERIOD"]
[350150385,1737655838461,-438.64,0.000162,2]
[350150386,1737655838471,-438.16,0.000162,2]
[350150387,1737655838480,-266.025,0.00016238,2]
[350150388,1737655838490,-15241.4894,0.00016238,2]
[350150389,1737655838499,-176.58,0.00016315,2]
[350150390,1737655838509,-2955.17991611,0.00016338,2]
[350150391,1737655838518,-1235.2029,0.00016338,2]
[350150392,1737655838527,-1296.3928,0.00016338,2]
[350150393,1737655838537,-62826.0056,0.00016338,2]
[350150394,1737655838546,-180.5725,0.00016338,2]
[350150395,1737655838556,-597.7266,0.00016338,2]
[350150396,1737655838565,-2485.8515,0.00016338,2]
[350150397,1737655838574,-541.8541,0.00016338,2]
[350150398,1737655838583,-3786.9019,0.00016338,2]
[350150399,1737655838765,-438.64,0.000164,2]
[350150400,1737655838775,-2598.81694142,0.000164,2]
[350150401,1737655838784,-154.59,0.00016428,3]
[350150402,1737655838794,-463.8,0.00016428,3]
[350150403,1737655838805,-1127.7,0.00016428,2]
[350150404,1737655838815,-600.96043297,0.00016438,2]
[350150405,1737655838824,-501.2689923,0.00016438,2]
[350150406,1737655838835,-465.57628947,0.00016438,2]
[350150407,1737655838847,-500.0,0.00016438,2]
[350150408,1737655838857,-500.0,0.00016438,2]
[350150409,1737655838866,-496.30765403,0.00016438,2]
[350150410,1737655838875,-500.0,0.00016438,2]
[350150411,1737655838884,-500.0,0.00016438,2]
[350150412,1737655838893,-500.0,0.00016438,2]
[350150413,1737655838903,-500.0,0.00016438,2]
[350150414,1737655838914,-307.82192045,0.00016438,2]
[350150415,1737655838924,-500.0,0.00016438,2]
[350150416,1737655838935,-500.0,0.00016438,2]
[350150417,1737655838945,-500.0,0.00016438,2]
[350150418,1737655838954,-500.0,0.00016438,2]
[350150419,1737655838963,-210.59046057,0.00016438,2]
[350150420,1737655838972,-500.0,0.00016438,2]
[350150421,1737655838982,-533.91943995,0.00016438,2]
[350150422,1737655838991,-500.0,0.00016438,2]
[350150423,1737655839000,-500.0,0.00016438,2]
[350150424,1737655839010,-500.0,0.00016438,2]
[350150425,1737655839020,-500.0,0.00016438,2]
[350150426,1737655839030,-502.52943397,0.00016438,2]
[350150427,1737655839042,-500.0,0.00016438,2]
[350150428,1737655839052,-257.95926261,0.00016438,2]
[350150429,1737655839062,-500.0,0.00016438,2]
[350150430,1737655839072,-500.0,0.00016438,2]
[350150431,1737655839082,-500.0,0.00016438,2]
[350150432,1737655839092,-500.0,0.00016438,2]
[350150433,1737655839102,-500.0,0.00016438,2]
[350150434,1737655839111,-500.0,0.00016438,2]
[350150435,1737655839121,-500.0,0.00016438,2]
[350150436,1737655839131,-500.0,0.00016438,2]
[350150437,1737655839140,-500.0,0.00016438,2]
[350150438,1737655839149,-500.0,0.00016438,2]
[350150439,1737655839159,-500.0,0.00016438,2]
[350150440,1737655839169,-500.0,0.00016438,2]
[350150441,1737655839178,-500.0,0.00016438,2]
[350150442,1737655839188,-500.0,0.00016438,2]
[350150443,1737655839197,-500.0,0.00016438,2]
[350150444,1737655839207,-472.11551083,0.00016438,2]
[350150445,1737655839217,-500.0,0.00016438,2]
[350150446,1737655839226,-500.0,0.00016438,2]
[350150447,1737655839237,-500.0,0.00016438,2]
[350150448,1737655839247,-500.0,0.00016438,2]
[350150449,1737655839260,-500.0,0.00016438,2]
[350150450,1737655839269,-500.0,0.00016438,2]
[350150451,1737655839279,-500.0,0.00016438,2]
[350150452,1737655839290,-500.0,0.00016438,2]
[350150453,1737655839299,-500.0,0.00016438,2]
[350150454,1737655839309,-500.0,0.00016438,2]
[350150455,1737655839319,-535.5095386,0.00016438,2]
[350150456,1737655839330,-500.0,0.00016438,2]
[350150457,1737655839339,-500.0,0.00016438,2]
[350150458,1737655839348,-500.0,0.00016438,2]
[350150459,1737655839358,-500.0,0.00016438,2]
[350150460,1737655839368,-500.0,0.00016438,2]
[350150461,1737655839377,-500.0,0.00016438,2]
[350150462,1737655839386,-500.0,0.00016438,2]
[350150463,1737655839395,-500.0,0.00016438,2]
[350150464,1737655839404,-500.0,0.00016438,2]
[350150465,1737655839414,-500.0,0.00016438,2]
[350150466,1737655839423,-500.0,0.00016438,2]
[350150467,1737655839432,-500.0,0.00016438,2]
[350150468,1737655839442,-500.0,0.00016438,2]
[350150469,1737655839451,-500.0,0.00016438,2]
[350150470,1737655839461,-500.0,0.00016438,2]
[350150471,1737655839470,-512.56859004,0.00016438,2]
[350150472,1737655839479,-500.0,0.00016438,2]
[350150473,1737655839490,-500.0,0.00016438,2]
[350150474,1737655839499,-500.0,0.00016438,2]
[350150475,1737655839509,-500.0,0.00016438,2]
[350150476,1737655839521,-500.0,0.00016438,2]
[350150477,1737655839531,-500.0,0.00016438,2]
[350150478,1737655839540,-633.84442698,0.00016438,2]
[350150479,1737655839550,-500.0,0.00016438,2]
[350150480,1737655839559,-500.0,0.00016438,2]
[350150481,1737655839569,-500.0,0.00016438,2]
[350150482,1737655839578,-500.0,0.00016438,2]
[350150483,1737655839587,-500.0,0.00016438,2]
[350150484,1737655839597,-500.0,0.00016438,2]
[350150485,1737655839606,-500.0,0.00016438,2]
[350150486,1737655839615,-500.0,0.00016438,2]
[350150487,1737655839625,-500.0,0.00016438,2]
[350150488,1737655839635,-500.0,0.00016438,2]
[350150489,1737655839644,-500.0,0.00016438,2]
[350150490,1737655839654,-500.0,0.00016438,2]
[350150491,1737655839664,-500.0,0.00016438,2]
[350150492,1737655839673,-500.0,0.00016438,2]
[350150493,1737655839683,-500.0,0.00016438,2]
[350150494,1737655839693,-500.0,0.00016438,2]
[350150495,1737655839702,-500.0,0.00016438,2]
[350150496,1737655839711,-500.0,0.00016438,2]
[350150497,1737655839721,-500.0,0.00016438,2]
[350150498,1737655839730,-500.0,0.00016438,2]
[350150499,1737655839740,-500.0,0.00016438,2]
[350150500,1737655839751,-500.0,0.00016438,2]
[350150501,1737655839760,-500.0,0.00016438,2]
[350150502,1737655839769,-500.0,0.00016438,2]
[350150503,1737655839778,-500.0,0.00016438,2]
[350150504,1737655839787,-500.0,0.00016438,2]
[350150505,1737655839797,-500.0,0.00016438,2]
[350150506,1737655839806,-500.0,0.00016438,2]
[350150507,1737655839815,-500.0,0.00016438,2]
[350150508,1737655839824,-500.0,0.00016438,2]
[350150509,1737655839833,-500.0,0.00016438,2]
[350150510,1737655839842,-500.0,0.00016438,2]
[350150511,1737655839851,-500.0,0.00016438,2]
[350150512,1737655839860,-500.0,0.00016438,2]
[350150513,1737655839869,-500.0,0.00016438,2]
[350150514,1737655839878,-371.73760322,0.00016438,2]
[350150515,1737655839887,-500.0,0.00016438,2]
[350150516,1737655839896,-500.0,0.00016438,2]
[350150517,1737655839906,-516.04565291,0.00016438,2]
[350150518,1737655839915,-500.0,0.00016438,2]
[350150520,1737655839924,-500.0,0.00016438,2]
[350150522,1737655839934,-500.0,0.00016438,2]
[350150523,1737655839943,-497.09906104,0.00016438,2]
[350150524,1737655839952,-511.15913233,0.00016438,2]
[350150525,1737655839961,-500.0,0.00016438,2]
[350150526,1737655839971,-500.0,0.00016438,2]
[350150527,1737655839979,-500.0,0.00016438,2]
[350150528,1737655839990,-500.0,0.00016438,2]
[350150529,1737655839999,-500.0,0.00016438,2]
[350150530,1737655840008,-500.0,0.00016438,2]
[350150531,1737655840017,-500.0,0.00016438,2]
[350150532,1737655840026,-500.0,0.00016438,2]
[350150533,1737655840035,-200.0,0.00016438,2]
[350150534,1737655840044,-500.0,0.00016438,2]
[350150535,1737655840054,-500.0,0.00016438,2]
[350150536,1737655840063,-500.0,0.00016438,2]
[350150537,1737655840072,-500.0,0.00016438,2]
[350150538,1737655840082,-500.0,0.00016438,2]
[350150539,1737655840092,-500.0,0.00016438,2]
[350150540,1737655840102,-259.13604859,0.00016438,2]
[350150541,1737655840111,-500.0,0.00016438,2]
[350150542,1737655840120,-500.0,0.00016438,2]
[350150543,1737655840130,-500.0,0.00016438,2]
[350150544,1737655840139,-500.0,0.00016438,2]
[350150545,1737655840147,-500.0,0.00016438,2]
[350150546,1737655840157,-500.0,0.00016438,2]
[350150547,1737655840166,-500.0,0.00016438,2]
[350150548,1737655840175,-500.0,0.00016438,2]
[350150549,1737655840185,-500.0,0.00016438,2]
[350150550,1737655840194,-500.0,0.00016438,2]
[350150551,1737655840203,-500.0,0.00016438,2]
[350150552,1737655840212,-500.0,0.00016438,2]
[350150553,1737655840221,-279.39187718,0.00016438,2]
[350150554,1737655840231,-500.0,0.00016438,2]
[350150555,1737655840241,-500.0,0.00016438,2]
[350150556,1737655840253,-500.0,0.00016438,2]
[350150557,1737655840263,-500.0,0.00016438,2]
[350150558,1737655840272,-500.0,0.00016438,2]
[350150559,1737655840282,-527.03441208,0.00016438,2]
[350150560,1737655840291,-500.0,0.00016438,2]
[350150561,1737655840301,-366.83489419,0.00016438,2]
[350150562,1737655840311,-500.0,0.00016438,2]
[350150563,1737655840321,-500.0,0.00016438,2]
[350150564,1737655840330,-500.0,0.00016438,2]
[350150565,1737655840341,-500.0,0.00016438,2]
[350150566,1737655840350,-500.0,0.00016438,2]
[350150567,1737655840360,-500.0,0.00016438,2]
[350150568,1737655840370,-500.0,0.00016438,2]
[350150569,1737655840379,-500.0,0.00016438,2]
[350150570,1737655840389,-500.0,0.00016438,2]
[350150571,1737655840398,-500.0,0.00016438,2]
[350150572,1737655840408,-500.0,0.00016438,2]
[350150573,1737655840417,-500.0,0.00016438,2]
[350150574,1737655840427,-500.0,0.00016438,2]
[350150575,1737655840436,-500.0,0.00016438,2]
[350150576,1737655840446,-500.0,0.00016438,2]
[350150577,1737655840455,-500.0,0.00016438,2]
[350150578,1737655840464,-500.0,0.00016438,2]
[350150579,1737655840474,-500.0,0.00016438,2]
[350150580,1737655840484,-500.0,0.00016438,2]
[350150581,1737655840494,-500.0,0.00016438,2]
[350150583,1737655840503,-500.0,0.00016438,2]
[350150585,1737655840513,-500.0,0.00016438,2]
[350150587,1737655840522,-500.0,0.00016438,2]
[350150589,1737655840532,-460.02124395,0.00016438,2]
[350150591,1737655840541,-500.0,0.00016438,2]
[350150593,1737655840550,-501.6426377,0.00016438,2]
[350150595,1737655840560,-532.28218952,0.00016438,2]
[350150597,1737655840569,-500.0,0.00016438,2]
[350150599,1737655840578,-500.0,0.00016438,2]
[350150601,1737655840589,-500.0,0.00016438,2]
[350150603,1737655840598,-500.0,0.00016438,2]
[350150605,1737655840607,-500.0,0.00016438,2]
[350150607,1737655840616,-500.0,0.00016438,2]
[350150609,1737655840625,-500.0,0.00016438,2]
[350150611,1737655840635,-500.0,0.00016438,2]
[350150613,1737655840645,-500.0,0.00016438,2]
[350150615,1737655840654,-500.0,0.00016438,2]
[350150617,1737655840664,-500.0,0.00016438,2]
[350150619,1737655840674,-500.0,0.00016438,2]
[350150621,1737655840684,-500.0,0.00016438,2]
[350150623,1737655840693,-500.0,0.00016438,2]
[350150625,1737655840703,-373.51941706,0.00016438,2]
[350150627,1737655840712,-500.0,0.00016438,2]
[350150629,1737655840721,-500.0,0.00016438,2]
[350150630,1737655840730,-500.0,0.00016438,2]
[350150631,1737655840740,-500.0,0.00016438,2]
[350150632,1737655840749,-408.02363604,0.00016438,2]
[350150633,1737655840758,-500.0,0.00016438,2]
[350150634,1737655840767,-500.0,0.00016438,2]
[350150635,1737655840776,-500.0,0.00016438,2]
[350150636,1737655840785,-500.0,0.00016438,2]
[350150637,1737655840795,-500.0,0.00016438,2]
[350150638,1737655840804,-500.0,0.00016438,2]
[350150639,1737655840813,-500.0,0.00016438,2]
[350150640,1737655840823,-500.0,0.00016438,2]
[350150641,1737655840832,-500.0,0.00016438,2]
[350150642,1737655840842,-500.0,0.00016438,2]
[350150643,1737655840852,-500.0,0.00016438,2]
[350150644,1737655840861,-500.0,0.00016438,2]
[350150645,1737655840871,-500.0,0.00016438,2]
[350150646,1737655840880,-500.0,0.00016438,2]
[350150647,1737655840889,-500.0,0.00016438,2]
[350150648,1737655840898,-500.0,0.00016438,2]
[350150649,1737655840908,-500.0,0.00016438,2]
[350150650,1737655840917,-500.0,0.00016438,2]
[350150651,1737655840926,-500.0,0.00016438,2]
[350150652,1737655840935,-500.0,0.00016438,2]
[350150653,1737655840946,-500.0,0.00016438,2]
[350150654,1737655840955,-500.0,0.00016438,2]
[350150655,1737655840965,-506.92,0.00016438,2]
[350150656,1737655840974,-508.02090311,0.00016438,2]
[350150657,1737655840985,-500.0,0.00016438,2]
[350150658,1737655840995,-500.0,0.00016438,2]
[350150659,1737655841005,-500.0,0.00016438,2]
[350150660,1737655841014,-500.0,0.00016438,2]
[350150661,1737655841026,-273.79484458,0.00016438,2]
[350150662,1737655841037,-500.0,0.00016438,2]
[350150663,1737655841048,-651.11,0.00016438,2]
[350150664,1737655841058,-500.0,0.00016438,2]
[350150665,1737655841068,-500.0,0.00016438,2]
[350150666,1737655841078,-500.0,0.00016438,2]
[350150667,1737655841087,-500.0,0.00016438,2]
[350150668,1737655841099,-500.0,0.00016438,2]
[350150669,1737655841109,-500.0,0.00016438,2]
[350150670,1737655841118,-500.0,0.00016438,2]
[350150671,1737655841127,-500.0,0.00016438,2]
[350150672,1737655841137,-500.0,0.00016438,2]
[350150673,1737655841148,-500.0,0.00016438,2]
[350150674,1737655841157,-500.0,0.00016438,2]
[350150675,1737655841166,-406.12575334,0.00016438,2]
[350150676,1737655841176,-514.9467934,0.00016438,2]
[350150677,1737655841186,-500.0,0.00016438,2]
[350150678,1737655841195,-500.0,0.00016438,2]
[350150679,1737655841204,-500.0,0.00016438,2]
[350150680,1737655841214,-500.0,0.00016438,2]
[350150681,1737655841223,-500.0,0.00016438,2]
[350150682,1737655841232,-500.0,0.00016438,2]
[350150683,1737655841242,-500.0,0.00016438,2]
[350150684,1737655841252,-977.09,0.00016438,2]
[350150685,1737655841265,-416.38545026,0.00016438,2]
[350150686,1737655841274,-500.0,0.00016438,2]
[350150687,1737655841283,-500.0,0.00016438,2]
[350150688,1737655841293,-500.0,0.00016438,2]
[350150689,1737655841303,-500.0,0.00016438,2]
[350150690,1737655841312,-697.71,0.00016438,2]
[350150691,1737655841322,-500.0,0.00016438,2]
[350150692,1737655841332,-500.0,0.00016438,2]
[350150693,1737655841341,-457.766242,0.00016438,2]
[350150694,1737655841351,-500.0,0.00016438,2]
[350150695,1737655841360,-344.42594496,0.00016438,2]
[350150696,1737655841370,-500.0,0.00016438,2]
[350150697,1737655841380,-500.0,0.00016438,2]
[350150698,1737655841391,-1581.97,0.00016438,2]
[350150699,1737655841401,-500.0,0.00016438,2]
[350150700,1737655841412,-500.0,0.00016438,2]
[350150701,1737655841422,-500.0,0.00016438,2]
[350150702,1737655841432,-599.39,0.00016438,2]
[350150703,1737655841442,-500.0,0.00016438,2]
[350150704,1737655841452,-500.0,0.00016438,2]
[350150705,1737655841462,-500.0,0.00016438,2]
[350150706,1737655841471,-500.0,0.00016438,2]
[350150707,1737655841481,-500.0,0.00016438,2]
[350150708,1737655841490,-500.0,0.00016438,2]
[350150709,1737655841499,-500.0,0.00016438,2]
[350150710,1737655841508,-593.25,0.00016438,2]
[350150711,1737655841518,-500.0,0.00016438,2]
[350150712,1737655841527,-500.0,0.00016438,2]
[350150713,1737655841536,-500.0,0.00016438,2]
[350150714,1737655841545,-524.887166,0.00016438,2]
[350150715,1737655841555,-500.0,0.00016438,2]
[350150716,1737655841564,-668.13,0.00016438,2]
[350150717,1737655841574,-500.0,0.00016438,2]
[350150718,1737655841583,-505.62005127,0.00016438,2]
[350150719,1737655841592,-492.51043245,0.00016438,2]
[350150720,1737655841601,-500.0,0.00016438,2]
[350150721,1737655841610,-1027.85,0.00016438,2]
[350150722,1737655841619,-661.6,0.00016438,2]
[350150723,1737655841629,-500.0,0.00016438,2]
[350150724,1737655841639,-500.0,0.00016438,2]
[350150725,1737655841648,-1172.88,0.00016438,2]
[350150726,1737655841658,-226.19657602,0.00016438,2]
[350150727,1737655841667,-500.0,0.00016438,2]
[350150728,1737655841676,-1722.54,0.00016438,2]
[350150729,1737655841685,-500.0,0.00016438,2]
[350150730,1737655841695,-500.0,0.00016438,2]
[350150731,1737655841704,-778.01,0.00016438,2]
[350150732,1737655841713,-1954.78,0.00016438,2]
[350150733,1737655841723,-2124.25,0.00016438,2]
[350150734,1737655841732,-500.0,0.00016438,2]
[350150735,1737655841742,-500.0,0.00016438,2]
[350150736,1737655841883,-500.0,0.00016438,2]
[350150737,1737655841893,-807.33,0.00016438,2]
[350150738,1737655841902,-1984.09,0.00016438,2]
[350150739,1737655841913,-1444.55,0.00016438,2]
[350150740,1737655841924,-500.0,0.00016438,2]
[350150741,1737655841935,-2271.43,0.00016438,2]
[350150742,1737655841944,-500.0,0.00016438,2]
[350150743,1737655841954,-500.0,0.00016438,2]
[350150744,1737655841963,-500.0,0.00016438,2]
[350150745,1737655841972,-251.256417,0.00016438,2]
[350150746,1737655841981,-742.9,0.00016438,2]
[350150747,1737655841993,-1129.58,0.00016438,2]
[350150748,1737655842002,-491.87507469,0.00016438,2]
[350150749,1737655842012,-500.0,0.00016438,2]
[350150750,1737655842021,-4008.93,0.00016438,2]
[350150751,1737655842030,-500.0,0.00016438,2]
[350150752,1737655842039,-500.0,0.00016438,2]
[350150753,1737655842048,-500.0,0.00016438,2]
[350150754,1737655842057,-1816.7,0.00016438,2]
[350150755,1737655842066,-500.0,0.00016438,2]
[350150756,1737655842075,-500.0,0.00016438,2]
[350150757,1737655842084,-839.53,0.00016438,2]
[350150758,1737655842094,-500.0,0.00016438,2]
[350150759,1737655842103,-516.40983848,0.00016438,2]
[350150760,1737655842112,-500.0,0.00016438,2]
[350150761,1737655842121,-500.0,0.00016438,2]
[350150762,1737655842131,-500.0,0.00016438,2]
[350150763,1737655842140,-789.45,0.00016438,2]
[350150764,1737655842149,-1959.78,0.00016438,2]
[350150765,1737655842159,-500.0,0.00016438,2]
[350150766,1737655842168,-500.0,0.00016438,2]
[350150767,1737655842177,-500.0,0.00016438,2]
[350150768,1737655842187,-804.36,0.00016438,2]
[350150769,1737655842195,-500.0,0.00016438,2]
[350150770,1737655842205,-717.6,0.00016438,2]
[350150771,1737655842214,-1725.63,0.00016438,2]
[350150772,1737655842222,-500.0,0.00016438,2]
[350150773,1737655842231,-500.0,0.00016438,2]
[350150774,1737655842244,-637.12696528,0.00016438,2]
[350150775,1737655842257,-500.0,0.00016438,2]
[350150776,1737655842267,-1098.24,0.00016438,2]
[350150777,1737655842276,-822.08,0.00016438,2]
[350150778,1737655842286,-500.0,0.00016438,2]
[350150779,1737655842296,-500.0,0.00016438,2]
[350150780,1737655842305,-500.0,0.00016438,2]
[350150781,1737655842314,-174.29077149,0.00016438,2]
[350150782,1737655842323,-500.0,0.00016438,2]
[350150783,1737655842334,-504.44514669,0.00016438,2]
[350150784,1737655842343,-2457.07,0.00016438,2]
[350150785,1737655842352,-1478.91,0.00016438,2]
[350150786,1737655842361,-500.0,0.00016438,2]
[350150787,1737655842370,-500.0,0.00016438,2]
[350150788,1737655842379,-500.0,0.00016438,2]
[350150789,1737655842388,-503.43955934,0.00016438,2]
[350150790,1737655842397,-500.0,0.00016438,2]
[350150791,1737655842407,-734.72,0.00016438,2]
[350150792,1737655842417,-500.0,0.00016438,2]
[350150793,1737655842426,-1131.54,0.00016438,2]
[350150794,1737655842435,-500.0,0.00016438,2]
[350150795,1737655842445,-539.33,0.00016438,2]
[350150796,1737655842454,-500.0,0.00016438,2]
[350150797,1737655842463,-500.0,0.00016438,2]
[350150798,1737655842472,-1242.64,0.00016438,2]
[350150799,1737655842482,-500.0,0.00016438,2]
[350150800,1737655842492,-1556.94,0.00016438,2]
[350150801,1737655842501,-500.0,0.00016438,2]
[350150802,1737655842511,-852.74,0.00016438,2]
[350150803,1737655842520,-500.0,0.00016438,2]
[350150804,1737655842529,-500.0,0.00016438,2]
[350150805,1737655842539,-500.0,0.00016438,2]
[350150806,1737655842548,-500.0,0.00016438,2]
[350150807,1737655842557,-500.0,0.00016438,2]
[350150808,1737655842567,-500.0,0.00016438,2]
[350150809,1737655842576,-500.0,0.00016438,2]
[350150810,1737655842585,-500.0,0.00016438,2]
[350150811,1737655842594,-500.0,0.00016438,2]
[350150812,1737655842603,-500.0,0.00016438,2]
[350150813,1737655842612,-500.0,0.00016438,2]
[350150814,1737655842622,-813.55,0.00016438,2]
[350150815,1737655842631,-500.0,0.00016438,2]
[350150816,1737655842640,-412.55863366,0.00016438,2]
[350150817,1737655842650,-574.37718809,0.00016438,2]
[350150818,1737655842659,-500.0,0.00016438,2]
[350150819,1737655842668,-1625.49,0.00016438,2]
[350150820,1737655842677,-500.0,0.00016438,2]
[350150821,1737655842686,-500.0,0.00016438,2]
[350150822,1737655842696,-1993.33,0.00016438,2]
[350150823,1737655842705,-500.0,0.00016438,2]
[350150824,1737655842715,-451.56219216,0.00016438,2]
[350150825,1737655842724,-449.86598005,0.00016438,2]
[350150826,1737655842735,-1546.22,0.000165,2]
[350150827,1737655842743,-339.7251,0.00016511,2]
[350150828,1737655842752,-222.50547067,0.00016518,2]
[350150829,1737655842761,-222.50547067,0.00016521,2]
[350150830,1737655842770,-222.50547067,0.00016523,2]
[350150831,1737655842780,-1097.92016641,0.00016525,2]
[350150833,1737655842789,-1097.92016641,0.00016533,2]
[350150834,1737655842798,-337.6714025,0.0001654,2]
[350150835,1737655842808,-12224.9298274,0.00016546,2]
[350150836,1737655842818,-1097.92016641,0.00016549,2]
[350150837,1737655842828,-3000.0,0.00016557,2]
[350150838,1737655842838,-976.133912,0.00016557,2]
[350150839,1737655842849,-319.51823973,0.00016561,2]
[350150840,1737655842859,-960.62282618,0.00016561,2]
[350150841,1737655842869,-960.62282618,0.00016561,2]
[350150842,1737655842879,-1097.92016641,0.00016562,2]
[350150843,1737655842888,-1619.92171232,0.00016562,2]
[350150844,1737655842898,-200.0,0.00016562,2]
[350150845,1737655842907,-240.26,0.00016563,2]
[350150846,1737655842917,-200.0,0.00016565,2]
[350150847,1737655842927,-2350.6251216,0.00016565,2]
[350150849,1737655842936,-12069.79616055,0.00016567,2]
[350150850,1737655842946,-379.32397569,0.00016569,2]
[350150852,1737655842955,-9550.06301299,0.0001657,2]
[350150853,1737655842962,-12069.79616055,0.00016572,2]
[350150854,1737655842971,-200.0,0.00016572,2]
[350150855,1737655842980,-213.50367059,0.00016575,2]
[350150856,1737655842991,-749.72754135,0.00016577,2]
[350150857,1737655843000,-12224.9298274,0.00016577,2]
[350150858,1737655843010,-960.62282618,0.00016578,2]
[350150859,1737655843019,-337.6714025,0.0001658,2]
[350150860,1737655843028,-222.50547067,0.00016581,2]
[350150861,1737655843037,-40726.39090576,0.00016582,2]
[350150862,1737655843046,-9550.06301299,0.00016582,2]
[350150863,1737655843056,-213.50367059,0.00016582,2]
[350150864,1737655843065,-1619.92171232,0.00016584,2]
[350150865,1737655843074,-200.0,0.00016587,2]
[350150866,1737655843083,-1127.30404637,0.00016588,2]
[350150867,1737655843092,-40726.39090576,0.00016593,2]
[350150868,1737655843101,-1619.92171232,0.00016596,2]
[350150869,1737655843111,-594.22467298,0.00016598,2]
[350150870,1737655843120,-200.0,0.00016599,2]
[350150871,1737655843129,-300.0,0.000166,6]
[350150872,1737655843139,-12224.9298274,0.000166,2]
[350150873,1737655843148,-749.72754135,0.00016602,2]
[350150874,1737655843158,-337.6714025,0.00016603,2]
[350150875,1737655843167,-379.32397569,0.00016603,2]
[350150876,1737655843176,-1668.60095137,0.00016604,2]
[350150877,1737655843184,-467.6618754,0.00016608,2]
[350150878,1737655843193,-40726.39090576,0.00016609,2]
[350150879,1737655843202,-1127.30404637,0.0001661,2]
[350150880,1737655843211,-500.0,0.00016611,2]
[350150881,1737655843220,-500.0,0.00016611,2]
[350150882,1737655843229,-500.0,0.00016611,2]
[350150883,1737655843241,-500.0,0.00016611,2]
[350150884,1737655843250,-500.0,0.00016611,2]
[350150885,1737655843261,-500.0,0.00016611,2]
[350150886,1737655843270,-500.0,0.00016611,2]
[350150887,1737655843280,-500.0,0.00016611,2]
[350150888,1737655843289,-500.0,0.00016611,2]
[350150889,1737655843299,-500.0,0.00016611,2]
[350150890,1737655843309,-500.0,0.00016611,2]
[350150891,1737655843319,-500.0,0.00016611,2]
[350150892,1737655843328,-500.0,0.00016611,2]
[350150893,1737655843340,-323.22304959,0.00016611,2]
[350150894,1737655843351,-500.0,0.00016611,2]
[350150895,1737655843360,-500.0,0.00016611,2]
[350150896,1737655843370,-500.0,0.00016611,2]
[350150897,1737655843380,-500.0,0.00016611,2]
[350150898,1737655843390,-500.0,0.00016611,2]
[350150900,1737655843400,-500.0,0.00016611,2]
[350150901,1737655843409,-500.0,0.00016611,2]
[350150903,1737655843418,-500.0,0.00016611,2]
[350150905,1737655843428,-500.0,0.00016611,2]
[350150906,1737655843437,-500.0,0.00016611,2]
[350150907,1737655843447,-500.0,0.00016611,2]
[350150908,1737655843456,-500.0,0.00016611,2]
[350150909,1737655843465,-500.0,0.00016611,2]
[350150910,1737655843474,-500.0,0.00016611,2]
[350150911,1737655843484,-636.1982872,0.00016611,2]
[350150912,1737655843496,-500.0,0.00016611,2]
[350150913,1737655843505,-500.0,0.00016611,2]
[350150915,1737655843515,-500.0,0.00016611,2]
[350150916,1737655843524,-500.0,0.00016611,2]
[350150918,1737655843533,-500.0,0.00016611,2]